Cogmind - Beta 13 @@@ ROGUE MODE // 2024.04.06 @ 22:40:13 Player: NewtypeWomanW Result: Self-destructed Performance ------------- Evolutions (2) 1000 Regions Visited (5) 1000 Robots Destroyed (36) 180 Value Destroyed (824) 824 Prototype IDs (27) 540 Alien Tech Used (0) 0 Bonus (335) 335 TOTAL SCORE: 3879 Bonus ------- Follower Combat Kills 35 Aligned with FarCom 300 Cogmind --------- Core Integrity 520/550 Matter 247/300 Energy 265/265 System Corruption 1% Temperature Cool (0) Movement Rolling (105) Ox1 Location -8/Materials Parts ------- > --- POWER (1) -------- Improved Ion Engine > --- PROPULSION (3) --- Armored Wheel (fused) Armored Wheel > --- UTILITY (5) ------ Large Storage Unit Cloak of Protection Splice Drone Bay (5/6) > --- WEAPON (2) ------- Advanced Beam Cannon > --- INVENTORY (15) --- Ion Engine Light Ion Engine Deuterium Engine Light Treads VTOL Module Shock Rifle Beam Cannon Advanced Beam Cannon Light Assault Rifle Light Assault Rifle Light Assault Rifle Advanced EMP Blaster Rocket Launcher Rocket Launcher Mini Grenade Launcher Peak State ------------ > --- POWER ------------ Improved Ion Engine > --- PROPULSION ------- Armored Wheel Armored Wheel > --- UTILITY ---------- Large Storage Unit Cloak of Protection Splice Drone Bay > --- WEAPON ----------- Advanced Beam Cannon Advanced EMP Blaster > --- INVENTORY -------- Ion Engine Light Ion Engine Deuterium Engine Light Treads VTOL Module Shock Rifle Small Laser Beam Cannon Advanced Beam Cannon Light Assault Rifle Light Assault Rifle Light Assault Rifle Rocket Launcher Rocket Launcher Mini Grenade Launcher [Rating: 31] Favorites ----------- Power Light Ion Engine Engine Light Ion Engine Propulsion Armored Wheel Treads Light Treads Wheel Armored Wheel Utility Large Storage Unit Device Cloak of Protection Storage Large Storage Unit Processor Signal Interpreter Weapon Light Assault Rifle Energy Cannon Advanced Beam Cannon Ballistic Gun Light Assault Rifle Launcher Rocket Launcher Build | -11 -10 -10 -10 -9 -8 ------- Run | Yrd Mat Min Exi Min Mat Slots Evolved 4 | . . . . . 4 Power . | . . . . . . Propulsion 1 | . . . . . 1 Utility 3 | . . . . . 3 Weapon . | . . . . . . Parts Attached 37 | 6 17 1 3 3 7 Power 8 | 1 3 1 2 1 . Engine 8 | 1 3 1 2 1 . Core . | . . . . . . Reactor . | . . . . . . Propulsion 5 | 2 3 . . . . Treads 3 | 2 1 . . . . Leg . | . . . . . . Wheel 2 | . 2 . . . . Hover . | . . . . . . Flight . | . . . . . . Utility 8 | 2 2 . 1 2 1 Device 4 | 1 . . 1 1 1 Storage 3 | 1 1 . . 1 . Processor 1 | . 1 . . . . Hackware . | . . . . . . Protection . | . . . . . . Artifact . | . . . . . . Weapon 16 | 1 9 . . . 6 Energy Gun . | . . . . . . Energy Cannon 2 | . . . . . 2 Ballistic Gun 7 | 1 5 . . . 1 Ballistic Cannon . | . . . . . . Launcher 7 | . 4 . . . 3 Special Weapon . | . . . . . . Impact Weapon . | . . . . . . Slashing Weapon . | . . . . . . Piercing Weapon . | . . . . . . Special Melee Weapon . | . . . . . . Unidentified Prototypes 3 | . . . . 1 2 Parts Lost 4 | . 4 . . . . Power 1 | . 1 . . . . Propulsion 1 | . 1 . . . . Utility 1 | . 1 . . . . Weapon 1 | . 1 . . . . Highest Loss Streak 2 | . 2 . . . . To Critical Strikes . | . . . . . . Average Slot Usage (%) 91 | . 95 100 100 100 68 Engine 12 | . 13 14 14 14 9 Treads 8 | . 21 . . . . Wheel 16 | . 4 28 28 28 18 Device 10 | . 10 . 2 14 16 Storage 12 | . 14 14 14 13 9 Processor 4 | . 3 14 11 . . Energy Cannon 1 | . . . . . 8 Ballistic Gun 20 | . 24 28 28 28 1 Launcher 2 | . 1 . . . 5 Naked Turns . | . . . . . . Heaviest Build 51 | 10 30 27 33 37 51 Greatest Support 40 | 40 40 24 24 24 24 Greatest Overweight (x) 2 | . 1 1 1 1 2 Average Overweight (x) . | . . 1 1 . 1 Largest Inventory Capacity 15 | 8 15 15 15 15 15 Average Capacity 14 | 7 14 15 15 14 15 Most Carried 15 | 2 11 8 9 13 15 Average Carried 8 | . 6 8 8 10 13 Final Capacity 15 | 8 15 15 15 15 15 Final Carried 15 | . 8 8 8 13 15 Class Distribution -------------------- 100% | Mutant Dominant Class ---------------- Mutant | -10/Materials Mutant | -10/Mines Mutant | -10/Exiles Mutant | -9/Mines Mutant | -8/Materials Resources | -11 -10 -10 -10 -9 -8 ----------- Run | Yrd Mat Min Exi Min Mat Matter Collected 956 | 204 388 50 . 51 263 Remotely . | . . . . . . Salvage Created 943 | 46 707 . . . 190 Parts 73 | 5 53 . . . 15 Haulers Intercepted 4 | . 2 . . . 2 Recyclers Shooed 1 | . 1 . . . . Parts Field Recycled . | . . . . . . Retrieved Matter . | . . . . . . Parts Self-Destructed . | . . . . . . Prevented . | . . . . . . Kills | -11 -10 -10 -10 -9 -8 ------- Run | Yrd Mat Min Exi Min Mat Combat Hostiles Destroyed 23 | . 20 . . . 3 Guns 9 | . 9 . . . . Cannons 2 | . . . . . 2 AOE 12 | . 11 . . . 1 Classes Destroyed 10 | 1 7 . . . 2 Worker 1 | . 1 . . . . Builder 1 | . 1 . . . . Tunneler 2 | 2 . . . . . Hauler 4 | . 2 . . . 2 Operator 1 | . 1 . . . . Watcher 4 | . 3 . . . 1 Swarmer 6 | . 6 . . . . Grunt 15 | . 14 . . . 1 Brawler 1 | . . . . . 1 Sentry 1 | . . . . . 1 Best Kill Streak 6 | 1 6 . . . 2 Combat Bots Only 5 | . 5 . . . 1 Max Kills in Single Turn 2 | 1 2 . . . 1 Gunslinging . | . . . . . . Exploded 2 | . 2 . . . 1 Melee . | . . . . . . Uniques/NPCs Destroyed . | . . . . . . Combat | -11 -10 -10 -10 -9 -8 -------- Run | Yrd Mat Min Exi Min Mat Hostile Shots Fired 109 | . 93 4 . . 12 Missed 37 | . 32 1 . . 4 Damage Taken 1168 | . 864 119 . 1 184 Core 183 | . 133 20 . . 30 Absorbed by Shields . | . . . . . . Regen/Repaired (Parts) 123 | . 123 . . . . Core Remaining (%) 69 | 100 . . . 38 . Volleys Fired 146 | 24 96 2 . . 24 Largest 2 | 1 2 2 . . 2 Hottest 101 | 20 50 40 . . 101 Shots Fired 241 | 24 181 4 . . 32 Gun 188 | 24 160 4 . . . Cannon 24 | . . . . . 24 Launcher 29 | . 21 . . . 8 Special . | . . . . . . Kinetic 188 | 24 160 4 . . . Thermal 24 | . . . . . 24 Explosive 29 | . 21 . . . 8 Electromagnetic . | . . . . . . Robot Hit Streak 14 | 2 14 5 . . 6 Robot Miss Streak 5 | 5 5 . . . 3 Penetration Max . | . . . . . . Secondary Targets 2 | . 2 . . . . Max Gunslinging Chain 1 | . 1 . . . . Shots Hit Robots 127 | 9 96 4 . . 18 Core Hits 72 | 4 57 1 . 1 9 Critical Kills 1 | . . . . . 1 Critical Parts Destroyed 1 | . 1 . . . . Critical Strikes 2 | . 1 . . . 1 Meltdown 1 | . . . . . 1 Destroy 1 | . 1 . . . . Melee Attacks . | . . . . . . Impact . | . . . . . . Slashing . | . . . . . . Piercing . | . . . . . . Sneak Attacks . | . . . . . . Combat Hostiles . | . . . . . . Follow-up Attacks . | . . . . . . Damage Inflicted 2309 | 79 1530 35 . 2 663 Guns 914 | 79 800 35 . . . Cannons 266 | . . . . . 266 Explosions 1068 | . 696 . . . 372 Melee . | . . . . . . Ramming 61 | . 34 . . 2 25 Kinetic 914 | 79 800 35 . . . Thermal 266 | . . . . . 266 Explosive 1068 | . 696 . . . 372 Electromagnetic . | . . . . . . Impact . | . . . . . . Slashing . | . . . . . . Piercing . | . . . . . . Highest Corruption 2 | . . . . 2 1 Average Corruption 1 | . . . . 2 1 Corruption Purged . | . . . . . . Corruption Blocked . | . . . . . . Effects 1 | . . . . . 1 Parts Fused 1 | . . . . . 1 Overload Shots . | . . . . . . Overflow Damage 48 | . 19 . . . 29 Projectiles . | . . . . . . Explosions 48 | . 19 . . . 29 Melee . | . . . . . . Knockbacks . | . . . . . . Impact . | . . . . . . Kinetic . | . . . . . . Secondary . | . . . . . . Self-Inflicted Damage 173 | . 143 . . 1 29 Shots 5 | . 4 . . . 1 Rammed 11 | . 8 . . 1 2 Targets Rammed 12 | . 9 . . 1 2 Kicked . | . . . . . . Crushed 1 | . 1 . . . . Highest Temperature 419 | . 53 . . . 419 Average Temperature 49 | . 18 . . . 85 Received Heat Transfer 396 | . 378 . . . 18 Siege Activations . | . . . . . . Robots Corrupted . | . . . . . . Combat Hostiles . | . . . . . . Parts Fried . | . . . . . . Impact Corruptions . | . . . . . . Robots Melted 1 | . . . . . 1 Combat Hostiles . | . . . . . . Parts Melted . | . . . . . . Heat Transferred 481 | . . . . . 481 Parts Sabotaged . | . . . . . . Parts Stolen . | . . . . . . Parts Stripped . | . . . . . . Power Chain Reactions . | . . . . . . Alert | -11 -10 -10 -10 -9 -8 ------- Run | Yrd Mat Min Exi Min Mat Peak Influence 296 | 10 296 101 . . 129 Initial 101 | . 6 101 . . . Average 60 | 2 87 70 . . 53 Maximum Alert Level 1 | . 1 . . . . Low Security (%) 95 | 100 89 100 . 100 100 Level 1 4 | . 10 . . . . Level 2 . | . . . . . . Level 3 . | . . . . . . Level 4 . | . . . . . . Level 5 . | . . . . . . High Security . | . . . . . . Max Security . | . . . . . . Squads Dispatched 7 | . 4 . . . 3 Investigation 4 | . 3 . . . 1 Extermination . | . . . . . . Reinforcement 3 | . 1 . . . 2 Assault . | . . . . . . Garrison . | . . . . . . Intercept . | . . . . . . Searches Triggered . | . . . . . . Construction Impeded 1 | . . . . . 1 Haulers Reinforced . | . . . . . . Active Scanning Responses . | . . . . . . Cargo Convoy Interrupts . | . . . . . . Stealth | -11 -10 -10 -10 -9 -8 --------- Run | Yrd Mat Min Exi Min Mat Distress Signals 4 | . 3 . . . 1 Communications Jammed . | . . . . . . Distress Signals . | . . . . . . Times Spotted 37 | . 29 1 . . 7 Peak Tracking Total 6 | . 6 1 . . 4 Tactical Retreats 3 | . 1 . . . 2 Traps | -11 -10 -10 -10 -9 -8 ------- Run | Yrd Mat Min Exi Min Mat Traps Triggered 2 | . 2 . . . . Indirectly . | . . . . . . Trap Hack Attempts . | . . . . . . Triggered . | . . . . . . Disarmed . | . . . . . . Reprogrammed . | . . . . . . Reused . | . . . . . . Traps Extracted . | . . . . . . Installed . | . . . . . . Triggered . | . . . . . . Machines | -11 -10 -10 -10 -9 -8 ---------- Run | Yrd Mat Min Exi Min Mat Machines Disabled 3 | . 3 . . . . Max in Single Turn 1 | . 1 . . . . Machines Repaired . | . . . . . . Machines Dismantled . | . . . . . . Machines Sabotaged . | . . . . . . Overloaded Fab Kills . | . . . . . . Hacking | -11 -10 -10 -10 -9 -8 --------- Run | Yrd Mat Min Exi Min Mat Machines Accessed 13 | . 6 . 5 1 1 Terminals 4 | . 4 . . . . Fabricators . | . . . . . . Repair Stations 1 | . 1 . . . . Recycling Units 1 | . 1 . . . . Scanalyzers 1 | . . . . . 1 Garrison Access . | . . . . . . Total Hacks 73 | . 19 . 50 1 3 Successful 64 | . 11 . 50 1 2 Failed 9 | . 8 . . . 1 Catastrophic . | . . . . . . Database Lockouts . | . . . . . . Manual 1 | . . . 1 . . Terminals 12 | . 12 . . . . Fabricators . | . . . . . . Repair Stations 6 | . 6 . . . . Recycling Units 1 | . 1 . . . . Scanalyzers 3 | . . . . . 3 Garrison Access . | . . . . . . Terminal Hacks 57 | . 6 . 50 1 . Record 49 | . . . 49 . . Robot Analysis 1 | . 1 . . . . Open Door 1 | . . . . 1 . Emergency Access Points 1 | . 1 . . . . Locate Traps 1 | . 1 . . . . Recall Investigation 1 | . 1 . . . . Zone Layout 2 | . 2 . . . . Derelict Proto ID Bank 1 | . . . 1 . . Fabricator Hacks . | . . . . . . Repair Station Hacks 4 | . 4 . . . . Scan Component 2 | . 2 . . . . Repair 2 | . 2 . . . . Recycling Unit Hacks 1 | . 1 . . . . Report Inventory 1 | . 1 . . . . Scanalyzer 2 | . . . . . 2 Insert Component 1 | . . . . . 1 Analyze 1 | . . . . . 1 Garrison Access Hacks . | . . . . . . Unauthorized Hacks . | . . . . . . Terminals . | . . . . . . Fabricators . | . . . . . . Repair Stations . | . . . . . . Recycling Units . | . . . . . . Scanalyzers . | . . . . . . Garrison Access . | . . . . . . Data Cores Recovered . | . . . . . . Used . | . . . . . . Hacking Detections 6 | . 5 . . . 1 Full Trace Events 3 | . 2 . . . 1 Feedback Events . | . . . . . . Feedback Blocked . | . . . . . . Robot Schematics Acquired . | . . . . . . Robots Built . | . . . . . . Authchips . | . . . . . . Time . | . . . . . . Total Robot Build Rating . | . . . . . . Part Schematics Acquired 1 | . . . . . 1 Parts Built . | . . . . . . Authchips . | . . . . . . Time . | . . . . . . Total Part Build Rating . | . . . . . . Parts Repaired 2 | . 2 . . . . Time 52 | . 52 . . . . Parts Recycled . | . . . . . . Recycled Matter . | . . . . . . Retrieved Matter . | . . . . . . Retrieved Components . | . . . . . . Parts Scanalyzed 1 | . . . . . 1 Part Schematics Acquired 1 | . . . . . 1 Parts Damaged . | . . . . . . Bothacking | -11 -10 -10 -10 -9 -8 ------------ Run | Yrd Mat Min Exi Min Mat Used RIF Installer . | . . . . . . Robots Hacked . | . . . . . . Non-combat . | . . . . . . Combat . | . . . . . . Robot Hacks Applied . | . . . . . . Relay Couplers Released . | . . . . . . Fabnet Peak Effective % . | . . . . . . Robots Rewired . | . . . . . . Allies Hacked . | . . . . . . Hacks Repelled . | . . . . . . Allies | -11 -10 -10 -10 -9 -8 -------- Run | Yrd Mat Min Exi Min Mat Total Allies 4 | . . 3 . . 1 Largest Group 3 | . . 3 . . 1 Highest-Rated Group 40 | . . 40 . . 16 Highest-Rated Ally 16 | . . 16 . . 16 Total Orders 3 | . . . . 1 2 EXPLORE 1 | . . . . . 1 RETURN 2 | . . . . 1 1 Ally Attacks 11 | . . 2 . . 9 Total Damage 119 | . . 26 . . 93 Kills 1 | . . . . . 1 Allies Corrupted . | . . . . . . Allies Melted . | . . . . . . Intel | -11 -10 -10 -10 -9 -8 ------- Run | Yrd Mat Min Exi Min Mat Robot Analysis Total 1 | . 1 . . . . Derelict Logs Recovered . | . . . . . . Drone Launches 7 | . . . . 1 6 Drone Recoveries 6 | . . . . 1 5 Exploration | -11 -10 -10 -10 -9 -8 ------------- Run | Yrd Mat Min Exi Min Mat Turns Passed 5454 | 184 2119 574 667 751 1159 Spaces Moved 3878 | 88 1139 540 631 701 779 Core 10 | 10 . . . . . Treads 962 | 78 884 . . . . Legs . | . . . . . . Wheels 2906 | . 255 540 631 701 779 Hover . | . . . . . . Flight . | . . . . . . Fastest Speed 50 | 50 105 105 105 90 105 Average Speed 121 | 147 153 105 105 104 113 Slowest Speed 240 | 160 240 105 105 105 120 Overloaded Moves . | . . . . . . Propulsion Burnouts . | . . . . . . Robots Hopped . | . . . . . . Cave-ins Triggered . | . . . . . . Exploration Rate (%) 59 | 8 89 76 73 87 25 Regions Visited 5 Branch Regions 3 Pre-discovered Areas 2 | . . 1 1 . . Known Exits Taken 3 | . 1 1 1 . . Unknown Exits Taken 2 | 1 . . . 1 . Scrap Searched 4 | . . 1 . 3 . Spaces Dug . | . . . . . . Terrain Destroyed 158 | . 86 . . . 72 Melee . | . . . . . . Projectile . | . . . . . . AOE 158 | . 86 . . . 72 Terrain Rammed . | . . . . . . Walls Destroyed . | . . . . . . Machines Disabled . | . . . . . . Actions | -11 -10 -10 -10 -9 -8 --------- Run | Yrd Mat Min Exi Min Mat Total 4385 | 123 1344 543 634 716 1025 Wait 265 | . 67 1 . . 197 Move 3873 | 87 1138 539 630 700 779 Hop . | . . . . . . Pick Up 42 | 6 16 . 1 11 8 Fast Attach . | . . . . . . Attach 17 | 6 7 . . 1 3 Detach 2 | . . . . . 2 Swap 20 | . 10 1 3 2 4 Drop 8 | . 1 . . 1 6 Fire 146 | 24 96 2 . . 24 Melee . | . . . . . . Ram 4 | . 1 . . 1 2 Kick . | . . . . . . Crush 8 | . 8 . . . . Escape Stasis . | . . . . . . Rewire . | . . . . . . Trap . | . . . . . . Miscellaneous . | . . . . . . Route ------- -11/Scrapyard -10/Materials (discovered 4 exits: *Mat x3 / *Min) -10/Mines (discovered 2 exits: *Mat / *Exi) -10/Exiles (discovered 2 exits: *Min x2) -9/Mines (discovered 2 exits: *Mat x2) -8/Materials History --------- Turn | Location | Event 32 | -11/Scrapyard | Discovered new exit (range 15) 185 | -11/Scrapyard | Entered Materials 231 | -10/Materials | Discovered new exit (range 10) 316 | -10/Materials | Build established: Mutant 928 | -10/Materials | Discovered new exit (range 12) 1065 | -10/Materials | Repaired Lgt. Ion Engine 1197 | -10/Materials | Repaired Lgt. Treads 1638 | -10/Materials | Discovered new exit (range 8) 1729 | -10/Materials | Identified exit to Materials 2117 | -10/Materials | Discovered exit to Materials (range 11) 2138 | -10/Materials | Core integrity fell below 50% 2302 | -10/Materials | Identified exit to Mines 2304 | -10/Materials | Entered Mines 2305 | -10/Mines | Learned location of Storage (-9) 2321 | -10/Mines | Discovered exit to Materials (range 9) 2346 | -10/Mines | Assembled infested the area 2351 | -10/Mines | Assisted by a Guerilla fighting off Assembled 2354 | -10/Mines | Deemed a non-threat by the Exiles lab entrance 2355 | -10/Mines | Discovered new exit (range 5) 2571 | -10/Mines | Assisted by bots powering up and referring to "LRC-V3" 2799 | -10/Mines | Lost 3 allies 2877 | -10/Mines | Identified exit to Exiles 2878 | -10/Mines | Entered Exiles 2898 | -10/Exiles | Discovered new exit (range 15) 2923 | -10/Exiles | Identified exit to Mines 2945 | -10/Exiles | Met 8R-AWN 2966 | -10/Exiles | Met EX-HEX 3020 | -10/Exiles | Met EX-DEC 3051 | -10/Exiles | Learned location of Zion (-7) 3103 | -10/Exiles | Discovered exit to Mines (range 14) 3229 | -10/Exiles | Met EX-BIN 3247 | -10/Exiles | Aligned with FarCom system 3248 | -10/Exiles | Given EX-Vault access code 3326 | -10/Exiles | Opened EX-Vault 3410 | -10/Exiles | Found Cloak of Protection 3440 | -10/Exiles | Warned to stay clear of 0b10 Research branches 3545 | -10/Exiles | Left Exiles lab with Cloak of Protection 3545 | -10/Exiles | Entered Mines 3613 | -9/Mines | Discovered new exit (range 15) 3820 | -9/Mines | Found the Drone Emporium 3829 | -9/Mines | Found Prototype Device 3846 | -9/Mines | Identified Splice Drone Bay 4089 | -9/Mines | Found a hidden stash of uninstalled traps 4157 | -9/Mines | Discovered new exit (range 7) 4232 | -9/Mines | Received a Rocket Launcher from a helpful Derelict 4296 | -9/Mines | Entered Materials 4296 | -8/Materials | Evolved 4 slots: Propulsion x1, Utility x3 5455 | -8/Materials | Self-destructed Last Messages --------------- 05372_ U-05 Engineer lays Concrete. Open spaces previously occupied by now-destroyed walls and earth have a slight glow to them. Consecutive moves through these unstable areas may cause a cave-in, but only if doing so for extended periods. Tunneling a short distance between rooms is safe unless the area was destabilized by an explosion. 05373_ U-05 Engineer lays Concrete. 05378_ U-05 Engineer builds a Wall. 05394_ U-05 Engineer lays Concrete. 05396_ U-05 Engineer builds a Wall. 05401_ U-05 Engineer lays Concrete. 05402_ Acquired 31 matter. 05424_ U-05 Engineer lays Concrete. 05441_ U-05 Engineer builds a Door. 05446_ U-05 Engineer lays Concrete. 05455_ System corrupted: Arm. Wheel fused. [A new version of Cogmind is available, see F1 News page.] Map ----- +----------------------------------------------------+ | ???????????????????????????????????????? | | ?????????????????????????########??????? | | ?????????????????????????# #??????? | | ?????????????????????????# """ !#??????? | | ?????????????????????????# "Y" #??????? | | ?????????????????????????# " " ####???? | | ?????????????????????????# # #???? | | ?????????????????????????# # #???? | | ?????????????????????????### #+## #???? | | ?????????????????????????### #???? | | ?????????????????????????# # #???? | | ?????????????????????????### ###+#####? | | ?????????????????###########% # #? | | ?????????????????# / + # #? | | ?????????????????# ! # #? | | ?????????????????# ! # #? | | ?????????????????# # # #? | | ?????????????????# # # #? | | ?????????????????# ! # # #? | | ?????????????????# ! / # #? | | ?????????????????# ] # # #? | | ??????????????# ####k##r## # #? | | ??????????? # # # # #? | | ????????# # # # #########? | | ????????# ### #????????? | | ?????? r u @ #????????? | | ????????# #########+#####?????? | | ?????????## ## #?????? | | ???????? # ## """ !#?????? | | ???????""""" ## ##### """ #?????? | | ??????????""???# #????# """ #?????? | | ???????????????# #????# #?????? | | ???????????????# g#????# #?????? | | ???????????????# ###### " " / #?????? | | ???????????????# g + =+ "R" #?????? | | ???????????????#! ###### """ #?????? | | ???????????????###+#????##########?????? | | ?????###########?# #???????????????????? | | ?????# ### ##########??????????? | | ?????# """" + ## #??????????? | | ?????# ""S"" ###### #??????????? | | ?????# "" "" #????# #??????????? | | ?????# #????# #####??????????? | | ###### #????# ###????????????? | | # #????# # #????????????? | | "" # #????# #????????????? | | "" !####+#######???# # #????????????? | | "" # #???# ############???? | | + ##### ## #???? | | "" # # #???? | +----------------------------------------------------+ Best States ------------- Heat Dissipation 31 Energy Generation 12 Energy Capacity 265 Matter Stores 300 Matter Capacity 300 Sight Range 16 Terrain Scan Range 16 Terrain Scan Density 10 Evasion (%) 42 Recoil Reduction 2 Item Schematics ----------------- Imp. EM Shotgun | -8/Materials | Scanalyzed Robot Schematics ------------------ None Fabricated ------------ Nothing Alien Tech Used ----------------- None Achievements -------------- Error 47 GoHome() It's Just You Let's See Who's Tougher Release The Drones! Safety First Tourist Challenges ------------ None Game ------ Seed NodeTerrabombLeg Manual? 0 Play Time 00:44:23 Cumulative 2.7 hours Start 2024.04.02 @ 21:39:02 End 2024.04.06 @ 22:40:13 Sessions 2 Manual Loads 0 Difficulty Rogue Special Mode None Game No. 2 Rogue 2 Adventurer 0 Explorer 0 Win Type - Total 0 Types 0/0/0/0/0/0/0/0/0 Lore% 10 Gallery% 4 Achievement% 7 Wizard Run 0 Options --------- Layout 1 ASCII 0 Keyboard 0 Movement Arrows Keybinds 0 Fullscreen 0 Font 20/SmallcapsGlow Map View 50x35 Zoom Use 0% Tactical HUD 1 Map Filters NONE Filters NONE Steam 1 RUN: 5bddf073-7054-4705-8738-5725bee2851a